bitfinex/quotes_BTCUSD_20241027
["timestamp","ask_amount","ask_price","bid_price","bid_amount"]
[1730051775692,0.51806613,67814.0,67813.0,0.01525303]
[1730051775901,0.76255448,67814.0,67813.0,0.01525303]
[1730051776121,0.275464,67813.0,67812.0,0.0916]
[1730051776343,0.78044484,67813.0,67812.0,0.0916]
[1730051778942,0.78044484,67813.0,67812.0,0.092423]
[1730051780058,1.03044484,67813.0,67812.0,0.092423]
[1730051780276,1.04044484,67813.0,67812.0,0.092423]
[1730051783296,1.13254516,67813.0,67812.0,0.092423]
[1730051783511,1.28304897,67813.0,67812.0,0.092423]
[1730051783733,1.1723425,67813.0,67812.0,0.092423]
[1730051784386,1.15314196,67813.0,67812.0,0.092423]
[1730051785306,1.14314196,67813.0,67812.0,0.092423]
[1730051786449,1.14314196,67813.0,67812.0,0.087423]
[1730051786680,0.99263815,67813.0,67812.0,0.087423]
[1730051788109,1.00263815,67813.0,67812.0,0.000823]
[1730051789479,1.00463815,67813.0,67812.0,0.000823]
[1730051790127,1.00628415,67813.0,67812.0,0.000823]
[1730051790805,0.502475,67808.0,67807.0,0.086923]
[1730051791025,0.99686481,67808.0,67807.0,0.086923]
[1730051791480,1.05589681,67808.0,67807.0,0.086923]
[1730051791705,1.05789681,67808.0,67807.0,0.086923]
[1730051791933,0.502483,67804.0,67803.0,0.000834]
[1730051792181,1.06378392,67804.0,67803.0,0.000834]
[1730051792398,0.9716836,67804.0,67803.0,0.000834]
[1730051793054,1.06378392,67804.0,67803.0,0.000834]
[1730051793267,1.17526044,67804.0,67803.0,0.000834]
[1730051793913,1.17526044,67804.0,67803.0,0.091634]
[1730051794142,1.08316012,67804.0,67803.0,0.091634]
[1730051794835,0.9946836,67804.0,67803.0,0.091634]
[1730051796150,0.9946836,67804.0,67803.0,0.086634]
[1730051798105,1.01235574,67804.0,67803.0,0.086634]
[1730051798311,1.07869537,67804.0,67803.0,0.086634]
[1730051799947,1.17079569,67804.0,67803.0,0.086634]
[1730051800178,1.16758265,67804.0,67803.0,0.086634]
[1730051800427,1.10124302,67804.0,67803.0,0.086634]
[1730051800669,1.10124302,67804.0,67784.0,0.148361]
[1730051800670,0.275488,67802.0,67794.0,0.0908]
[1730051800912,0.66716966,67802.0,67794.0,0.0908]
[1730051802100,0.005,67774.0,67766.0,0.22159355]
[1730051802357,0.33964932,67774.0,67773.0,0.01189209]
[1730051802591,0.1,67773.0,67767.0,0.02012664]
[1730051802831,0.1,67773.0,67768.0,0.00295087]
[1730051803093,0.005,67787.0,67771.0,0.09210032]
[1730051803337,0.1,67784.0,67774.0,0.09210032]
[1730051803560,0.10221363,67784.0,67775.0,0.147546]
[1730051803789,0.10221363,67784.0,67775.0,0.16764471]
[1730051804020,0.10221363,67784.0,67775.0,0.02009871]
[1730051804558,0.1,67783.0,67772.0,0.147551]
[1730051805035,0.1,67783.0,67773.0,0.02010569]
[1730051805269,0.1,67783.0,67774.0,0.1672]
[1730051805497,0.24753,67783.0,67774.0,0.1672]
[1730051805714,0.24753,67783.0,67775.0,0.02013791]
[1730051805925,0.147532,67782.0,67775.0,0.02013791]
[1730051807056,0.295063,67782.0,67775.0,0.02013791]
[1730051807289,0.147535,67781.0,67775.0,0.02013791]
[1730051807498,0.14753,67783.0,67774.0,0.1672]
[1730051807713,0.14753,67783.0,67776.0,0.0203406]
[1730051807945,0.39727163,67784.0,67774.0,0.1672]
[1730051807946,0.39727163,67784.0,67775.0,0.02034409]
[1730051808192,0.147532,67782.0,67774.0,0.1672]
[1730051808401,0.147533,67782.0,67774.0,0.1672]
[1730051808627,0.147534,67781.0,67775.0,0.02034409]
[1730051808848,0.147533,67782.0,67775.0,0.02034409]
[1730051809302,0.00221363,67784.0,67775.0,0.02034409]
[1730051809536,0.51962836,67783.0,67774.0,0.1672]
[1730051809751,0.37209736,67783.0,67774.0,0.1672]
[1730051809956,0.147532,67782.0,67775.0,0.0204131]
[1730051810178,0.15050381,67781.0,67774.0,0.1672]
[1730051810398,0.15050381,67781.0,67775.0,0.0204131]
[1730051810862,0.15050381,67781.0,67774.0,0.1672]
[1730051811291,0.15050381,67781.0,67775.0,0.0204131]
[1730051811529,0.29803881,67781.0,67774.0,0.1672]
[1730051812217,0.15050381,67781.0,67774.0,0.1672]
[1730051812456,0.147539,67779.0,67774.0,0.1672]
[1730051812678,0.29804381,67778.0,67774.0,0.1672]
[1730051812902,0.15050381,67778.0,67774.0,0.1672]
[1730051813775,0.147547,67775.0,67774.0,0.0908]
[1730051814032,0.29805081,67775.0,67774.0,0.0908]
[1730051816557,0.15050381,67775.0,67774.0,0.0908]
[1730051816961,0.15050381,67775.0,67774.0,0.1724]
[1730051817175,0.15050381,67775.0,67774.0,0.19290708]
[1730051826046,0.29805081,67775.0,67774.0,0.19290708]
[1730051826265,0.15050381,67775.0,67774.0,0.19290708]
[1730051826482,0.15050381,67775.0,67774.0,0.1724]
[1730051826742,0.15050381,67775.0,67774.0,0.19291434]
[1730051829223,0.15050381,67775.0,67774.0,0.18791434]
[1730051836616,0.29805081,67775.0,67774.0,0.18791434]
[1730051837484,0.15050381,67775.0,67774.0,0.18791434]
[1730051837951,0.14754,67778.0,67774.0,0.18791434]
[1730051838163,0.15050381,67777.0,67774.0,0.18791434]
[1730051838604,0.001646,67775.0,67774.0,0.18791434]
[1730051838815,0.001646,67775.0,67774.0,0.19253149]
[1730051839319,0.001646,67775.0,67774.0,0.18791434]
[1730051839523,0.001646,67775.0,67774.0,0.19253149]
[1730051840636,0.001646,67775.0,67774.0,0.34008049]
[1730051841077,0.001646,67775.0,67774.0,0.19253149]
[1730051841530,0.001646,67775.0,67774.0,0.43513136]
[1730051841754,0.001646,67775.0,67774.0,0.34008049]
[1730051846637,0.001646,67775.0,67774.0,0.34008018]
[1730051849630,0.001646,67775.0,67774.0,0.49225359]
[1730051849899,0.001646,67775.0,67774.0,0.35590318]
[1730051850360,0.001646,67775.0,67774.0,0.44800326]
[1730051850590,0.001646,67775.0,67774.0,0.35128634]
[1730051850814,0.001646,67775.0,67774.0,0.35590294]
[1730051851242,0.001646,67775.0,67774.0,0.39514789]
[1730051851476,0.001646,67775.0,67774.0,0.39014789]
[1730051851930,0.001646,67775.0,67774.0,0.39514789]
[1730051852154,0.001646,67775.0,67774.0,0.40014789]
[1730051855373,0.001646,67775.0,67774.0,0.35590294]
[1730051855597,0.001646,67775.0,67774.0,0.35090294]
[1730051855827,0.001646,67775.0,67774.0,0.17850294]
[1730051856281,0.001646,67775.0,67774.0,0.02595394]
[1730051856757,0.001646,67775.0,67774.0,0.02133734]
[1730051856975,0.001646,67775.0,67774.0,0.16888634]
[1730051858340,0.001646,67775.0,67774.0,0.17388634]
[1730051859444,0.001646,67775.0,67774.0,0.17850338]
[1730051859881,0.001646,67775.0,67774.0,0.17350338]
[1730051860103,0.001646,67775.0,67774.0,0.17388634]
[1730051860313,0.001646,67775.0,67774.0,0.17850339]
[1730051860542,0.001646,67775.0,67774.0,0.17388634]
[1730051861202,0.001646,67775.0,67774.0,0.17850316]
[1730051865034,0.001646,67775.0,67774.0,0.17850319]
[1730051872460,0.001646,67775.0,67774.0,0.17850322]
[1730051876606,0.001646,67775.0,67774.0,0.27060354]
[1730051879464,0.001646,67775.0,67774.0,0.17850322]
[1730051879677,0.001646,67775.0,67774.0,0.27060354]
[1730051881262,0.001646,67775.0,67774.0,0.31486742]
[1730051881746,0.001646,67775.0,67774.0,0.31025054]
[1730051881982,0.001646,67775.0,67774.0,0.26598666]
[1730051883232,0.001646,67775.0,67774.0,0.27060337]
[1730051885241,0.001646,67775.0,67774.0,0.26598666]
[1730051886958,0.001646,67775.0,67774.0,0.31026594]
[1730051887169,0.001646,67775.0,67774.0,0.31488271]
[1730051887649,0.47309681,67775.0,67774.0,0.02595411]
[1730051888137,0.47309681,67775.0,67774.0,0.000823]
[1730051889262,0.47309681,67775.0,67774.0,0.02131109]
[1730051889673,0.32554981,67775.0,67774.0,0.02131109]
[1730051890793,0.47309681,67775.0,67774.0,0.02131109]
[1730051891464,0.47309681,67775.0,67774.0,0.000823]
[1730051896521,0.47309681,67775.0,67774.0,0.02131109]
[1730051898760,0.32554981,67775.0,67774.0,0.02131109]
[1730051899020,0.47309681,67775.0,67774.0,0.000823]
[1730051899748,0.15214981,67775.0,67774.0,0.000823]
[1730051899988,0.15214981,67775.0,67774.0,0.17356212]
[1730051900864,0.15214981,67775.0,67774.0,0.02601312]
[1730051901088,0.15214981,67775.0,67774.0,0.16894511]
[1730051902206,0.15214981,67775.0,67774.0,0.02139611]
[1730051902432,0.37999681,67775.0,67774.0,0.02139611]
[1730051902896,0.23244981,67775.0,67774.0,0.000823]
[1730051903102,0.37999681,67775.0,67774.0,0.000823]
[1730051903315,0.23244981,67775.0,67774.0,0.000823]
[1730051904001,0.37999681,67775.0,67774.0,0.000823]
[1730051904468,0.23244981,67775.0,67774.0,0.000823]
[1730051905110,0.37999681,67775.0,67774.0,0.000823]
[1730051909995,0.47949681,67775.0,67774.0,0.000823]
[1730051910229,0.48540181,67775.0,67774.0,0.000823]
[1730051910465,0.57750213,67775.0,67774.0,0.000823]
[1730051920912,0.58250213,67775.0,67774.0,0.000823]
[1730051924040,0.59940651,67775.0,67774.0,0.000823]
[1730051932963,0.69940651,67775.0,67774.0,0.000823]
[1730051933403,0.96501064,67775.0,67774.0,0.000823]
[1730051933626,1.03136846,67775.0,67774.0,0.000823]
[1730051933845,0.90294942,67775.0,67774.0,0.000823]
[1730051934313,0.81450683,67775.0,67774.0,0.000823]
[1730051934531,0.90296571,67775.0,67774.0,0.000823]
[1730051936654,0.81450683,67775.0,67774.0,0.000823]
[1730051936854,0.63030619,67775.0,67774.0,0.000823]
[1730051937068,0.72240651,67775.0,67774.0,0.000823]
[1730051938813,0.93536802,67775.0,67774.0,0.000823]
[1730051939056,1.00168505,67775.0,67774.0,0.000823]
[1730051939493,0.93536802,67775.0,67774.0,0.000823]
[1730051939949,1.00168498,67775.0,67774.0,0.000823]
[1730051940601,0.93536802,67775.0,67774.0,0.000823]
[1730051942392,0.7157677,67775.0,67774.0,0.000823]
[1730051946685,0.50280619,67775.0,67774.0,0.000823]
[1730051948991,0.50502027,67775.0,67774.0,0.000823]
[1730051950856,0.70785002,67775.0,67774.0,0.000823]
[1730051952051,0.50502027,67775.0,67774.0,0.000823]
[1730051952274,0.70838494,67775.0,67774.0,0.000823]
[1730051954359,0.80048526,67775.0,67774.0,0.000823]
[1730051954587,0.84472156,67775.0,67774.0,0.000823]
[1730051957017,0.80048526,67775.0,67774.0,0.000823]
[1730051957160,0.73572497,67775.0,67774.0,0.000823]
[1730051957367,0.78358088,67775.0,67774.0,0.000823]
[1730051957596,0.61118056,67775.0,67774.0,0.000823]
[1730051960229,0.78558088,67775.0,67774.0,0.000823]
[1730051960464,0.92222871,67775.0,67774.0,0.000823]
[1730051960670,0.87798088,67775.0,67774.0,0.000823]
[1730051961381,0.92222828,67775.0,67774.0,0.000823]
[1730051964663,0.9980812,67775.0,67774.0,0.000823]
[1730051964869,1.08657601,67775.0,67774.0,0.000823]
[1730051965074,0.90598088,67775.0,67774.0,0.000823]
[1730051968971,0.9944722,67775.0,67774.0,0.000823]
[1730051973495,0.90598088,67775.0,67774.0,0.000823]
[1730051974389,0.99447428,67775.0,67774.0,0.000823]
[1730051976651,0.90598088,67775.0,67774.0,0.000823]
[1730051978412,0.61118056,67775.0,67774.0,0.000823]
[1730051979042,0.65544175,67775.0,67774.0,0.000823]
[1730051979275,0.61118056,67775.0,67774.0,0.000823]
[1730051981619,0.51118056,67775.0,67774.0,0.000823]
[1730051981842,0.36363356,67775.0,67774.0,0.11497303]
[1730051982265,0.51118056,67775.0,67774.0,0.11497303]
[1730051983572,0.36363356,67775.0,67774.0,0.11497303]
[1730051983893,0.35772856,67775.0,67774.0,0.34092203]
[1730051984829,0.50527556,67775.0,67774.0,0.11497303]
[1730051985036,0.50527556,67775.0,67774.0,0.093023]
[1730051985243,0.50527556,67775.0,67774.0,0.11469368]
[1730051988480,0.50527556,67775.0,67774.0,0.02249368]
[1730051988917,0.50527556,67775.0,67774.0,0.000823]
[1730051990845,0.50306148,67775.0,67774.0,0.000823]
[1730052000328,0.50306148,67775.0,67774.0,0.000223]
[1730052001430,0.35551448,67775.0,67774.0,0.000223]
[1730052001648,0.35551448,67775.0,67774.0,0.147772]
[1730052001867,0.35551448,67775.0,67774.0,0.223272]
[1730052002097,0.35551448,67775.0,67774.0,0.316772]
[1730052003471,0.20501067,67775.0,67774.0,0.316772]
[1730052004114,0.20501067,67775.0,67774.0,0.40887232]
[1730052004323,0.20501067,67775.0,67774.0,0.316772]
[1730052004738,0.20501067,67775.0,67774.0,0.32138906]
[1730052004951,0.27881067,67775.0,67774.0,0.32138906]
[1730052005420,0.27881067,67775.0,67774.0,0.41848938]
[1730052005625,0.27881067,67775.0,67774.0,0.42348938]
[1730052005900,0.27881067,67775.0,67774.0,0.42348907]
[1730052006975,0.27881067,67775.0,67774.0,0.09833975]
[1730052007461,0.57686148,67775.0,67774.0,0.000223]
[1730052007720,0.65836148,67775.0,67774.0,0.000223]
[1730052011767,0.7504618,67775.0,67774.0,0.000223]
[1730052014045,0.9703618,67775.0,67774.0,0.000223]
[1730052016498,0.87326148,67775.0,67774.0,0.000223]
[1730052020001,0.87826148,67775.0,67774.0,0.000223]
[1730052021121,0.87326148,67775.0,67774.0,0.000223]
[1730052022008,0.65836148,67775.0,67774.0,0.000223]
[1730052022217,0.57686148,67775.0,67774.0,0.000223]
[1730052022449,0.37349681,67775.0,67774.0,0.000223]
[1730052022951,0.45237013,67775.0,67774.0,0.000223]
[1730052023370,0.45237013,67775.0,67774.0,0.01264018]
[1730052027470,0.59991713,67775.0,67774.0,0.01264018]
[1730052027889,0.59991713,67775.0,67774.0,0.000223]
[1730052028700,0.59991713,67775.0,67774.0,0.01264018]
[1730052033126,0.59991713,67775.0,67774.0,0.000223]
[1730052035838,0.68021713,67775.0,67774.0,0.000223]
[1730052036260,0.77231745,67775.0,67774.0,0.000223]
[1730052036477,0.96981745,67775.0,67774.0,0.000223]
[1730052037334,0.98695948,67775.0,67774.0,0.000223]
[1730052039561,0.88985916,67775.0,67774.0,0.000223]
[1730052040474,0.89485916,67775.0,67774.0,0.000223]
[1730052041401,0.91785916,67775.0,67774.0,0.000223]
[1730052041879,0.95739144,67775.0,67774.0,0.000223]
[1730052042528,0.91785916,67775.0,67774.0,0.000223]
[1730052052573,0.9620011,67775.0,67774.0,0.000223]
[1730052053589,0.91785916,67775.0,67774.0,0.000223]
[1730052054398,0.98407208,67775.0,67774.0,0.000223]
[1730052054654,1.00995948,67775.0,67774.0,0.000223]
[1730052055501,1.16046329,67775.0,67774.0,0.000223]
[1730052056123,1.22673448,67775.0,67774.0,0.000223]
[1730052056344,1.16046329,67775.0,67774.0,0.000223]
[1730052056770,1.00995948,67775.0,67774.0,0.000223]
[1730052057011,0.98413035,67775.0,67774.0,0.000223]
[1730052057243,1.07623067,67775.0,67774.0,0.000223]
[1730052057446,0.91785916,67775.0,67774.0,0.000223]
[1730052058128,1.00995948,67775.0,67774.0,0.000223]
[1730052062393,0.91785916,67775.0,67774.0,0.000223]
[1730052062642,1.05235916,67775.0,67774.0,0.000223]
[1730052063065,0.71705916,67775.0,67774.0,0.000223]
[1730052063293,0.56951216,67775.0,67774.0,0.000223]
[1730052063712,0.56951216,67775.0,67774.0,0.0126596]
[1730052064426,0.45237013,67775.0,67774.0,0.2547086]
[1730052066382,0.45237013,67775.0,67774.0,0.1071596]
[1730052068417,0.59991713,67775.0,67774.0,0.1071596]
[1730052068660,0.45237013,67775.0,67774.0,0.094723]
[1730052068892,0.59991713,67775.0,67774.0,0.094723]
[1730052069873,0.69201745,67775.0,67774.0,0.000223]
[1730052070112,0.59991713,67775.0,67774.0,0.000223]
[1730052076489,0.69201745,67775.0,67774.0,0.000223]
[1730052076952,0.59991713,67775.0,67774.0,0.000223]
[1730052078366,0.45237013,67775.0,67766.0,0.09780428]
[1730052078560,0.147558,67770.0,67766.0,0.09744471]
[1730052078818,0.15050381,67769.0,67767.0,0.01120679]
[1730052079249,0.15050381,67769.0,67766.0,0.09744471]
[1730052079700,0.15050381,67769.0,67767.0,0.01120679]
[1730052084585,0.29806481,67769.0,67767.0,0.01120679]
[1730052086252,0.29806481,67769.0,67767.0,0.01202979]
[1730052086253,0.15050381,67769.0,67767.0,0.01202979]
[1730052086707,0.147562,67768.0,67767.0,0.01202979]
[1730052086913,0.29806581,67768.0,67767.0,0.01202979]
[1730052087094,0.29806581,67768.0,67767.0,0.000823]
[1730052088650,0.29806581,67768.0,67767.0,0.01203148]
[1730052088886,0.29806581,67768.0,67767.0,0.000823]
[1730052089295,0.15050381,67768.0,67767.0,0.01203148]
[1730052089881,0.15050381,67768.0,67767.0,0.000823]
[1730052090512,0.15050381,67768.0,67767.0,0.01203148]
[1730052090716,0.15050381,67768.0,67767.0,0.000823]
[1730052090929,0.15050381,67768.0,67767.0,0.01203148]
[1730052091137,0.15050381,67768.0,67767.0,0.000823]
[1730052091398,0.15050381,67768.0,67767.0,0.01203148]
[1730052091580,0.15050381,67768.0,67767.0,0.000823]
[1730052091778,0.15050381,67768.0,67767.0,0.01203148]
[1730052092011,0.15050381,67768.0,67767.0,0.000823]
[1730052092224,0.15050381,67768.0,67767.0,0.01203148]
[1730052092440,0.15050381,67768.0,67767.0,0.000823]
[1730052092680,0.15050381,67768.0,67767.0,0.01203148]
[1730052092884,0.15050381,67768.0,67767.0,0.000823]
[1730052093091,0.15050381,67768.0,67767.0,0.01203148]
[1730052093299,0.29806581,67768.0,67767.0,0.000823]
[1730052093502,0.15050381,67768.0,67767.0,0.01203148]
[1730052093710,0.29806581,67768.0,67767.0,0.000823]
[1730052095688,0.15050381,67768.0,67767.0,0.000823]
[1730052095915,0.37976581,67768.0,67767.0,0.000823]
[1730052096190,0.47186613,67768.0,67767.0,0.000823]
[1730052096413,0.66706613,67768.0,67767.0,0.000823]
[1730052098029,0.67206613,67768.0,67767.0,0.000823]
[1730052098753,0.67371213,67768.0,67767.0,0.000823]
[1730052099426,0.69671213,67768.0,67767.0,0.000823]
[1730052101381,0.99087796,67768.0,67767.0,0.000823]
[1730052101598,1.09022621,67768.0,67767.0,0.000823]
[1730052101825,1.1565197,67768.0,67767.0,0.000823]
[1730052102062,1.41965411,67768.0,67767.0,0.000823]
[1730052102302,1.27614003,67768.0,67767.0,0.000823]
[1730052102526,1.20984654,67768.0,67767.0,0.000823]
[1730052102975,1.29823786,67768.0,67767.0,0.000823]
[1730052103195,1.43911338,67768.0,67767.0,0.000823]
[1730052103422,1.35072206,67768.0,67767.0,0.000823]
[1730052103643,1.51322587,67768.0,67767.0,0.000823]
[1730052106459,1.62344539,67768.0,67767.0,0.000823]
[1730052107554,1.60137911,67768.0,67767.0,0.000823]
[1730052107767,1.62449629,67768.0,67767.0,0.000823]
[1730052108197,1.53634342,67768.0,67767.0,0.000823]
[1730052108410,1.62447984,67768.0,67767.0,0.000823]
[1730052109469,1.53634342,67768.0,67767.0,0.000823]
[1730052109702,1.38583961,67768.0,67767.0,0.000823]
[1730052110117,1.37831508,67768.0,67767.0,0.000823]
[1730052111477,1.44438255,67768.0,67767.0,0.000823]
[1730052112369,1.44238255,67768.0,67767.0,0.000823]
[1730052112575,1.59488636,67768.0,67767.0,0.000823]
[1730052114426,1.52881889,67768.0,67767.0,0.000823]
[1730052114647,1.50277814,67768.0,67767.0,0.000823]
[1730052114860,1.59487846,67768.0,67767.0,0.000823]
[1730052116218,1.44437465,67768.0,67767.0,0.000823]
[1730052116423,1.37631508,67768.0,67767.0,0.000823]
[1730052116645,1.28621476,67768.0,67767.0,0.000823]
[1730052117085,1.37831508,67768.0,67767.0,0.000823]
[1730052117517,1.44437465,67768.0,67767.0,0.000823]
[1730052117731,1.59487846,67768.0,67767.0,0.000823]
[1730052118154,1.57267462,67768.0,67767.0,0.000823]
[1730052118420,1.57267462,67768.0,67767.0,0.0005897]
[1730052118632,1.57267462,67768.0,67766.0,0.000823]
[1730052118633,0.1923,67766.0,67765.0,0.01784274]
[1730052118837,0.99318396,67766.0,67765.0,0.01784274]
[1730052119451,0.99318396,67766.0,67765.0,0.00596684]
[1730052121015,0.84068015,67766.0,67765.0,0.00596684]
[1730052121229,1.02488079,67766.0,67765.0,0.00596684]
[1730052121438,1.02688079,67766.0,67765.0,0.00596684]
[1730052121651,1.02488079,67766.0,67765.0,0.00596684]
[1730052122304,1.04254159,67766.0,67765.0,0.00596684]
[1730052122532,1.1950454,67766.0,67765.0,0.00596684]
[1730052122783,1.1950454,67766.0,67736.0,0.39349355]
[1730052122784,0.278,67750.0,67736.0,0.39349355]
[1730052123030,1.24446788,67750.0,67744.0,0.22242855]
[1730052123270,1.24646788,67750.0,67744.0,0.000835]
[1730052123724,1.24446788,67750.0,67744.0,0.000835]
[1730052123948,1.15236756,67750.0,67744.0,0.000835]
[1730052124395,1.05626756,67750.0,67744.0,0.000835]
[1730052124624,0.97436756,67750.0,67744.0,0.000835]
[1730052126664,0.247621,67741.0,67740.0,0.071315]
[1730052126881,0.59676215,67741.0,67740.0,0.071315]
[1730052129390,0.59255487,67741.0,67740.0,0.071315]
[1730052130907,0.1,67740.0,67736.0,0.0963]
[1730052131152,0.29812981,67739.0,67736.0,0.0963]
[1730052132419,0.15050381,67739.0,67736.0,0.0963]
[1730052133101,0.15050381,67739.0,67738.0,0.27020032]
[1730052133329,0.15050381,67739.0,67738.0,0.1781]
[1730052133546,0.15050381,67739.0,67738.0,0.19531881]
[1730052134423,0.15050381,67739.0,67738.0,0.19614181]
[1730052137959,0.15050381,67739.0,67738.0,0.28824213]
[1730052138404,0.15050381,67739.0,67738.0,0.2978617]
[1730052138614,0.15050381,67739.0,67738.0,0.4454887]
[1730052138850,0.22159355,67748.0,67739.0,0.1781]
[1730052139054,0.22159355,67748.0,67745.0,0.247111]
[1730052139055,0.15050381,67747.0,67745.0,0.247111]
[1730052139268,0.15050381,67747.0,67746.0,0.09210032]
[1730052139493,0.15050381,67747.0,67746.0,0.43496326]
[1730052140113,0.15050381,67747.0,67746.0,0.28735326]
[1730052144493,0.29811181,67747.0,67746.0,0.01715294]
[1730052144742,0.15050381,67747.0,67741.0,0.0926]
[1730052144952,0.15050381,67747.0,67743.0,0.09210032]
[1730052145168,0.29811281,67747.0,67743.0,0.09210032]
[1730052145381,0.15050381,67747.0,67744.0,0.01715949]
[1730052145799,0.29811181,67747.0,67744.0,0.01715949]
[1730052146216,0.29811181,67747.0,67743.0,0.09210032]
[1730052146217,0.15050381,67747.0,67743.0,0.09210032]
[1730052146657,0.15050381,67747.0,67744.0,0.01715949]
[1730052146858,0.15050381,67747.0,67743.0,0.09210032]
[1730052147064,0.15050381,67747.0,67745.0,0.01715599]
[1730052147266,0.15050381,67747.0,67743.0,0.09210032]
[1730052147468,0.15214981,67747.0,67743.0,0.09210032]
[1730052148037,0.29975781,67747.0,67743.0,0.09210032]
[1730052148229,0.29975781,67747.0,67741.0,0.0926]
[1730052148457,0.29975781,67747.0,67744.0,0.01715949]
[1730052148632,0.29975781,67747.0,67741.0,0.0926]
[1730052148861,0.15214981,67747.0,67741.0,0.0926]
[1730052149040,0.15214981,67747.0,67742.0,0.01716648]
[1730052149239,0.15214981,67747.0,67743.0,0.09210032]
[1730052149423,0.15214981,67747.0,67743.0,0.10924007]
[1730052150656,0.15214981,67747.0,67743.0,0.01713975]
[1730052151026,0.15214981,67747.0,67741.0,0.0976]
[1730052151230,0.15214981,67747.0,67744.0,0.01713626]
[1730052151450,0.15214981,67747.0,67741.0,0.0976]
[1730052151624,0.15214981,67747.0,67745.0,0.01713277]
[1730052151829,0.15214981,67747.0,67741.0,0.0976]
[1730052152053,0.15214981,67747.0,67746.0,0.01712927]
[1730052152287,0.15214981,67747.0,67741.0,0.0976]
[1730052152489,0.15214981,67747.0,67746.0,0.01712927]
[1730052152609,0.15214981,67747.0,67741.0,0.0976]
[1730052152815,0.15214981,67747.0,67742.0,0.01714325]
[1730052153249,0.15214981,67747.0,67743.0,0.09210032]
[1730052153448,0.15214981,67747.0,67743.0,0.01431575]
[1730052153672,0.15214981,67747.0,67741.0,0.0976]
[1730052153822,0.15214981,67747.0,67744.0,0.01431226]
[1730052154025,0.15214981,67747.0,67741.0,0.0976]
[1730052154251,0.15214981,67747.0,67745.0,0.01430876]
[1730052154450,0.15214981,67747.0,67741.0,0.0976]
[1730052154647,0.15214981,67747.0,67746.0,0.01430527]
[1730052154848,0.15214981,67747.0,67741.0,0.0976]
[1730052155085,0.15214981,67747.0,67746.0,0.01430527]
[1730052155236,0.15214981,67747.0,67741.0,0.0976]
[1730052155455,0.15214981,67747.0,67746.0,0.01430527]
[1730052155656,0.15214981,67747.0,67741.0,0.0976]
[1730052155865,0.15214981,67747.0,67746.0,0.01430527]
[1730052156060,0.15214981,67747.0,67741.0,0.0976]
[1730052156260,0.15214981,67747.0,67746.0,0.01430527]
[1730052156484,0.15214981,67747.0,67741.0,0.0976]
[1730052156688,0.15214981,67747.0,67746.0,0.01430527]
[1730052156897,0.15214981,67747.0,67741.0,0.0976]
[1730052157228,0.15214981,67747.0,67746.0,0.01430527]
[1730052157437,0.15214981,67747.0,67743.0,0.09210032]
[1730052157864,0.15214981,67747.0,67746.0,0.01430527]
[1730052158035,0.15214981,67747.0,67743.0,0.09210032]
[1730052158265,0.15214981,67747.0,67744.0,0.01442892]
[1730052158473,0.15214981,67747.0,67743.0,0.09210032]
[1730052158935,0.15214981,67747.0,67744.0,0.01442892]
[1730052159167,0.15214981,67747.0,67746.0,0.09210032]
[1730052159604,0.15214981,67747.0,67746.0,0.20012225]
[1730052160161,0.15214981,67747.0,67746.0,0.34773225]
[1730052161042,0.15214981,67747.0,67746.0,0.43983257]
[1730052161253,0.15214981,67747.0,67746.0,0.43455123]
[1730052163712,0.001646,67747.0,67746.0,0.53165155]
[1730052164090,0.001646,67747.0,67746.0,0.43955123]
[1730052164303,0.001646,67747.0,67746.0,0.53165155]
[1730052164921,0.001646,67747.0,67746.0,0.52703257]
[1730052165124,0.001646,67747.0,67746.0,0.47918729]
[1730052165574,0.001646,67747.0,67746.0,0.43493225]
[1730052165777,0.001646,67747.0,67746.0,0.52703257]
[1730052165926,0.001646,67747.0,67746.0,0.43955075]
[1730052166128,0.001646,67747.0,67746.0,0.43955074]
[1730052167183,0.001646,67747.0,67746.0,0.53165106]
[1730052167582,0.001646,67747.0,67746.0,0.57585897]
[1730052167795,0.001646,67747.0,67746.0,0.48375865]
[1730052168430,0.001646,67747.0,67746.0,0.43955074]
[1730052168628,0.001646,67747.0,67746.0,0.53165106]
[1730052168829,0.001646,67747.0,67746.0,0.43955074]
[1730052169612,0.001646,67747.0,67746.0,0.53165106]
[1730052169822,0.001646,67747.0,67746.0,0.43955074]
[1730052170863,0.001646,67747.0,67746.0,0.11764042]
[1730052170864,0.15214981,67747.0,67746.0,0.11764042]
[1730052171084,0.15214981,67747.0,67746.0,0.02404042]
[1730052173041,0.15214981,67747.0,67746.0,0.01904042]
[1730052173262,0.15214981,67747.0,67746.0,0.02404042]
[1730052177379,0.15214981,67747.0,67746.0,0.01942193]
[1730052177607,0.15214981,67747.0,67746.0,0.02404069]
[1730052182639,0.15214981,67747.0,67746.0,0.01904069]
[1730052182850,0.15214981,67747.0,67746.0,0.02404069]
[1730052183080,0.15214981,67747.0,67746.0,0.01904069]
[1730052184060,0.15214981,67747.0,67746.0,0.02404081]
[1730052184665,0.15214981,67747.0,67746.0,0.01904081]
[1730052185142,0.15214981,67747.0,67746.0,0.02404081]
[1730052186586,0.15214981,67747.0,67746.0,0.01904081]
[1730052186587,0.23494981,67747.0,67746.0,0.01904081]
[1730052188349,0.38255781,67747.0,67746.0,0.01904081]
[1730052188564,0.38255781,67747.0,67746.0,0.01442193]
[1730052188772,0.23494981,67747.0,67745.0,0.005]
[1730052188988,0.232054,67747.0,67746.0,0.00461912]
[1730052189684,0.084446,67747.0,67746.0,0.00461912]
[1730052191191,0.084446,67747.0,67742.0,0.005]
[1730052191422,0.15050381,67746.0,67743.0,0.00461912]
[1730052191653,0.15050381,67746.0,67745.0,0.005]
[1730052191861,0.15050381,67746.0,67745.0,0.00961912]
[1730052192776,0.15050381,67746.0,67745.0,0.00461912]
[1730052193885,0.15050381,67746.0,67745.0,0.01978369]
[1730052194123,0.15050381,67746.0,67745.0,0.00461912]
[1730052195233,0.15050381,67746.0,67745.0,0.01978369]
[1730052195446,0.15050381,67746.0,67745.0,0.00461912]
[1730052195667,0.15050381,67746.0,67745.0,0.01978362]
[1730052198343,0.24560381,67746.0,67745.0,0.01978362]
[1730052198571,0.39321381,67746.0,67745.0,0.00461905]
[1730052199249,0.39321381,67746.0,67740.0,0.000823]
[1730052199467,0.24560381,67746.0,67740.0,0.000823]
[1730052199684,0.147614,67745.0,67741.0,0.0046193]
[1730052199902,0.15050381,67744.0,67742.0,0.0046193]
[1730052200159,0.15050381,67744.0,67740.0,0.000823]
[1730052200372,0.0775,67743.0,67740.0,0.000823]